bitfinex-derivatives/quotes_SOLF0:USTF0_20240913
["timestamp","ask_amount","ask_price","bid_price","bid_amount"]
[1726210685591,11.45,133.91,133.89,6.02463859]
[1726210685788,0.9579,133.97,133.9,5.1211122]
[1726210685990,3.3605,133.9,133.89,6.02463859]
[1726210686290,11.45,133.91,133.89,11.14633572]
[1726210686490,11.45,133.91,133.89,6.02463859]
[1726210686992,14.8105,133.91,133.89,6.02463859]
[1726210691992,14.8105,133.9,133.89,6.02463859]
[1726210693297,3.3605,133.9,133.89,6.02463859]
[1726210693586,11.45,133.9,133.89,6.02463859]
[1726210693793,14.8104,133.91,133.89,6.02463859]
[1726210701699,11.45,133.9,133.89,6.02463859]
[1726210701999,11.45,133.9,133.88,0.97595996]
[1726210702198,11.45,133.89,133.88,0.97595996]
[1726210702394,14.8107,133.89,133.88,0.97595996]
[1726210711215,3.3612,133.88,133.86,1.13941498]
[1726210711413,11.45,133.87,133.86,1.13941498]
[1726210716417,11.45,133.89,133.86,1.13941498]
[1726210717321,16.96140081,133.98,133.86,1.13941498]
[1726210717322,16.96140081,133.98,133.86,2.53291498]
[1726210717513,11.45,133.9,133.86,13.98291498]
[1726210718020,11.45,133.9,133.87,3.3612]
[1726210718221,11.45,133.9,133.86,13.98291498]
[1726210719719,11.45,133.9,133.87,3.3612]
[1726210720820,11.45,133.89,133.87,3.3612]
[1726210722122,11.45,133.88,133.86,5.89431498]
[1726210723219,11.45,133.88,133.87,3.3613]
[1726210724224,3.3604,133.91,133.87,3.3613]
[1726210724536,11.45,133.89,133.87,3.3613]
[1726210726547,3.3604,133.91,133.87,3.3613]
[1726210726732,11.45,133.9,133.87,3.3613]
[1726210727026,11.45,133.9,133.88,3.361]
[1726210740537,11.45,133.9,133.87,3.3611]
[1726210740739,11.45,133.9,133.86,2.53291498]
[1726210741232,4.74530941,133.98,133.89,11.45]
[1726210741429,11.45,133.93,133.89,11.45]
[1726210741837,4.74530941,133.98,133.9,3.3604]
[1726210742021,11.45,133.92,133.9,3.3604]
[1726210744733,11.45,133.91,133.9,3.3604]
[1726210745532,11.45,133.91,133.89,3.3607]
[1726210747843,11.45,133.91,133.88,4.7782]
[1726210748041,11.45,133.9,133.88,4.7782]
[1726210749834,3.3603,133.91,133.88,4.7782]
[1726210750044,11.45,133.9,133.88,1.4174]
[1726210750435,11.45,133.89,133.86,2.53291498]
[1726210750739,4.74530941,133.98,133.86,5.89421498]
[1726210750740,11.45,133.88,133.86,5.89421498]
[1726210752044,11.45,133.88,133.87,3.3613]
[1726210752344,11.45,133.89,133.87,3.3613]
[1726210752742,11.45,133.9,133.87,3.3613]
[1726210753041,11.45,133.9,133.88,3.361]
[1726210755950,3.3603,133.91,133.89,3.3607]
[1726210755951,11.45,133.91,133.89,3.3607]
[1726210756845,11.45,133.91,133.88,3.3609]
[1726210760048,14.8103,133.91,133.88,3.3609]
[1726210762450,14.8106,133.9,133.87,3.3611]
[1726210763557,11.45,133.9,133.88,3.361]
[1726210767162,16.00973979,133.97,133.89,3.3607]
[1726210767461,11.45,133.92,133.89,3.3607]
[1726210768961,14.8101,133.92,133.89,3.3607]
[1726210769158,11.45,133.91,133.89,3.3607]
[1726210769956,11.45,133.91,133.88,3.3609]
[1726210770152,14.8103,133.91,133.88,3.3609]
[1726210770649,14.8105,133.9,133.87,3.3611]
[1726210770957,16.00973979,133.97,133.86,2.53291498]
[1726210770958,11.45,133.88,133.86,2.53291498]
[1726210771165,14.8111,133.88,133.86,1.13941498]
[1726210772360,11.45,133.88,133.86,1.13941498]
[1726210772661,11.45,133.88,133.86,4.50091498]
[1726210773051,11.45,133.87,133.86,1.13941498]
[1726210774765,14.8113,133.87,133.86,0.18081498]
[1726210782169,3.362,133.84,133.83,1.17811962]
[1726210782362,14.812,133.84,133.83,1.17811962]
[1726210789571,3.362,133.84,133.83,1.17811962]
[1726210789772,14.812,133.84,133.83,1.17811962]
[1726210792673,3.362,133.84,133.83,1.17811962]
[1726210792873,14.812,133.84,133.83,1.17811962]
[1726210798080,11.45,133.87,133.83,1.17811962]
[1726210798277,11.45,133.87,133.84,3.3619]
[1726210799081,14.8114,133.87,133.84,3.3619]
[1726210800378,3.3611,133.88,133.85,3.3616]
[1726210800882,11.45,133.87,133.85,3.3616]
[1726210801176,14.8113,133.87,133.84,3.3619]
[1726210802473,11.45,133.87,133.85,3.3617]
[1726210802678,11.45,133.86,133.83,1.17811962]
[1726210803185,11.45,133.86,133.84,3.362]
[1726210803186,14.8115,133.86,133.84,3.362]
[1726210803493,3.3615,133.86,133.84,3.362]
[1726210803882,11.45,133.86,133.84,3.362]
[1726210804082,14.8113,133.87,133.84,3.362]
[1726210805786,11.45,133.85,133.84,3.362]
[1726210807178,11.45,133.85,133.83,4.54021962]
[1726210811486,11.45,133.84,133.83,4.54021962]
[1726210811684,11.45,133.84,133.83,1.17811962]
[1726210813886,14.812,133.84,133.83,1.17811962]
[1726210816204,3.3625,133.82,133.81,0.78840248]
[1726210816393,14.8125,133.82,133.81,0.78840248]
[1726210817490,11.45,133.82,133.81,0.78840248]
[1726210818089,14.8125,133.82,133.81,0.78840248]
[1726210818501,6.7211,133.9,133.81,0.78840248]
[1726210818684,11.45,133.83,133.81,0.78840248]
[1726210819081,11.45,133.83,133.82,3.3623]
[1726210819283,11.45,133.83,133.81,0.78840248]
[1726210819800,11.45,133.83,133.81,4.15100248]
[1726210820891,11.45,133.83,133.81,0.78840248]
[1726210820892,11.45,133.82,133.81,0.78840248]
[1726210821898,11.45,133.82,133.81,4.15120248]
[1726210822102,11.45,133.82,133.81,0.78840248]
[1726210822500,3.68673409,133.88,133.81,0.78840248]
[1726210822695,11.45,133.85,133.81,0.78840248]
[1726210823001,15.975821,133.94,133.82,11.45]
[1726210823200,11.45,133.86,133.82,2.7848]
[1726210823806,11.45,133.85,133.83,3.3621]
[1726210829510,3.3615,133.86,133.83,3.3621]
[1726210829819,11.45,133.85,133.83,3.3621]
[1726210830018,15.975821,133.94,133.84,3.3618]
[1726210830221,11.45,133.85,133.84,3.3618]
[1726210831118,11.45,133.85,133.83,3.3622]
[1726210831320,11.45,133.85,133.82,2.7848]
[1726210831922,11.45,133.85,133.83,3.3623]
[1726210834014,11.45,133.85,133.84,3.362]
[1726210834312,3.3614,133.87,133.84,3.362]
[1726210834719,11.45,133.86,133.84,3.362]
[1726210837415,15.97970466,133.94,133.83,15.12255295]
[1726210837616,3.80344736,133.95,133.86,11.45]
[1726210837617,11.45,133.91,133.86,11.45]
[1726210837816,11.45,133.91,133.83,3.67255295]
[1726210837817,6.7164,134.0,133.88,11.45]
[1726210838016,11.45,133.92,133.88,11.45]
[1726210838420,6.7164,134.0,133.87,11.45]
[1726210838421,11.45,133.91,133.87,11.45]
[1726210839018,11.45,133.91,133.87,1.3875]
[1726210839218,11.45,133.89,133.87,1.3875]
[1726210839714,14.8106,133.9,133.87,4.7485]
[1726210839916,11.45,133.9,133.87,4.7485]
[1726210840232,11.45,133.9,133.88,3.3609]
[1726210840622,11.45,133.91,133.87,1.3875]
[1726210840927,11.45,133.92,133.87,14.1638]
[1726210841233,11.45,133.92,133.89,3.3605]
[1726210841415,11.45,133.92,133.87,14.1638]
[1726210841930,14.81,133.92,133.89,3.3606]
[1726210842421,11.45,133.92,133.87,14.1638]
[1726210843030,11.45,133.92,133.89,3.3605]
[1726210843731,11.45,133.92,133.87,14.1638]
[1726210845033,14.8097,133.94,133.9,11.45]
[1726210845927,14.8097,133.94,133.91,3.3601]
[1726210846123,14.8097,133.94,133.91,14.8101]
[1726210847125,14.8098,133.93,133.9,3.3603]
[1726210847326,11.45,133.92,133.88,11.45]
[1726210847731,14.8102,133.92,133.89,3.3606]
[1726210847920,11.45,133.92,133.89,3.3606]
[1726210848720,14.8101,133.92,133.89,3.3606]
[1726210849129,11.45,133.92,133.89,3.3606]
[1726210849631,14.8101,133.92,133.89,3.3606]
[1726210852939,3.3603,133.91,133.88,14.8109]
[1726210853937,3.3603,133.91,133.88,3.3609]
[1726210855140,14.8101,133.92,133.89,3.3607]
[1726210857432,3.3603,133.91,133.88,3.3609]
[1726210858141,3.3605,133.9,133.87,6.0749]
[1726210858336,11.45,133.91,133.87,6.0749]
[1726210858738,11.45,133.89,133.86,3.3614]
[1726210859226,3.3609,133.89,133.86,3.3614]
[1726210859425,11.45,133.87,133.83,3.3621]
[1726210859627,6.718,133.96,133.82,15.487]
[1726210859840,11.45,133.87,133.83,11.45]
[1726210860040,11.45,133.87,133.8,5.12301674]
[1726210860236,11.45,133.87,133.82,11.45]
[1726210860940,14.8114,133.87,133.84,3.362]
[1726210862043,11.45,133.87,133.84,3.362]
[1726210862440,3.3611,133.88,133.85,3.3617]
[1726210862739,6.718,133.96,133.85,11.45]
[1726210862943,6.718,133.96,133.87,3.3612]
[1726210862944,11.45,133.91,133.87,3.3612]
[1726210863145,3.3604,133.91,133.87,11.45]
[1726210863737,3.3604,133.91,133.87,14.811]
[1726210865150,3.3606,133.9,133.87,14.811]
[1726210868957,11.45,133.91,133.87,11.45]
[1726210869363,3.3603,133.91,133.88,3.3608]
[1726210869561,14.8103,133.91,133.88,3.3608]
[1726210870263,3.68049327,133.95,133.87,11.45]
[1726210870465,22.70385943,134.01,133.87,11.45]
[1726210870656,11.45,133.92,133.87,11.45]
[1726210871161,11.45,133.92,133.89,3.3607]
[1726210871363,11.45,133.92,133.87,11.45]
[1726210871957,3.3601,133.92,133.88,11.45]
[1726210872458,3.3601,133.92,133.89,3.3606]
[1726210875059,3.3598,133.93,133.9,3.3604]
[1726210875357,3.3598,133.93,133.89,11.45]
[1726210875567,3.3598,133.93,133.9,3.3604]
[1726210878065,3.3596,133.94,133.91,3.3602]
[1726210878366,14.8096,133.94,133.91,3.3602]
[1726210881089,3.3598,133.93,133.91,3.3602]
[1726210881270,14.8098,133.93,133.9,14.8104]
[1726210881562,11.45,133.92,133.87,11.45]
[1726210882154,14.8101,133.92,133.89,3.3606]
[1726210889473,3.3598,133.93,133.9,14.8105]
[1726210890274,3.3598,133.93,133.9,3.3605]
[1726210893369,6.7158,134.01,133.92,11.45]
[1726210893682,11.45,133.98,133.94,11.45]
[1726210893881,11.45,133.98,133.94,14.8094]
[1726210893882,3.3589,133.97,133.94,14.8094]
[1726210895773,10.0667,134.1,133.95,11.45]
[1726210895979,10.0667,134.1,133.92,3.64998983]
[1726210895980,11.45,134.01,133.96,11.45]
[1726210896181,11.45,133.99,133.96,11.45]
[1726210896872,11.45,133.99,133.92,8.76941034]
[1726210897076,11.45,133.99,133.94,11.45]
[1726210897802,11.45,133.99,133.94,15.25200164]
[1726210898180,14.8083,133.99,133.96,3.3589]
[1726210899073,11.45,133.99,133.96,3.3589]
[1726210900380,3.3581,134.0,133.96,3.3589]
[1726210900575,3.3581,134.0,133.97,3.3587]
[1726210900982,14.8077,134.01,133.96,11.45]
[1726210901181,14.8077,134.01,133.96,12.7604]
[1726210901486,14.8077,134.01,133.98,3.3583]
[1726210901679,3.3581,134.0,133.96,12.7604]
[1726210902884,3.3581,134.0,133.97,3.3586]
[1726210903582,3.3576,134.02,133.99,3.3581]
[1726210903778,3.3576,134.02,134.0,11.45]
[1726210904179,3.3574,134.03,134.0,14.8078]
[1726210905280,3.357,134.04,134.01,3.3575]
[1726210905681,14.807,134.04,134.01,3.3575]
[1726210905883,3.3572,134.03,134.01,3.3575]
[1726210906191,3.3572,134.03,134.0,14.8079]
[1726210906378,3.3572,134.03,134.0,3.3579]
[1726210908293,3.3572,134.03,134.0,14.8079]
[1726210908793,3.3572,134.03,134.01,3.3577]
[1726210909485,3.3572,134.03,134.0,14.8079]
[1726210912393,3.3572,134.03,133.97,1.4376]
[1726210912394,11.45,134.03,133.98,11.45]
[1726210912695,14.8075,134.02,133.99,3.3581]
[1726210914189,3.3578,134.01,133.98,14.8084]
[1726210915001,3.3578,134.01,133.99,3.3582]
[1726210918296,3.358,134.0,133.97,1.4376]
[1726210918689,11.45,134.01,133.97,1.4376]
[1726210918889,11.45,134.01,133.97,12.8876]
[1726210919297,14.8079,134.01,133.98,3.3583]
[1726210921402,3.358,134.0,133.98,3.3583]
[1726210921989,14.8078,134.01,133.98,3.3583]
[1726210922496,11.45,134.01,133.98,3.3583]
[1726210922801,14.8079,134.01,133.98,3.3583]
[1726210923606,3.3579,134.01,133.98,3.3583]
[1726210925698,3.358,134.0,133.97,11.45]
[1726210925912,3.358,134.0,133.97,14.8087]
[1726210926090,11.45,134.01,133.97,14.8087]
[1726210926291,3.3583,133.99,133.97,11.45]
[1726210926604,3.3583,133.99,133.96,4.6693]
[1726210927502,3.3583,133.99,133.96,1.3104]
[1726210927894,3.3583,133.99,133.96,4.6692]
[1726210932900,3.3585,133.98,133.96,4.6692]
[1726210934709,3.3584,133.99,133.96,4.6692]
[1726210935509,14.8081,134.0,133.97,3.3586]
[1726210937709,10.47845744,134.08,133.93,3.79115373]
[1726210937902,11.45,133.95,133.92,2.6764]
[1726210938103,11.45,133.93,133.88,3.6584348]
[1726210938411,11.45,133.93,133.88,11.45]
[1726210938612,11.45,133.93,133.88,15.12672884]
[1726210939011,14.8099,133.93,133.89,3.3606]
[1726210939202,11.45,133.94,133.89,11.45]
[1726210939404,11.45,133.94,133.9,11.45]
[1726210939607,11.45,133.94,133.91,3.3601]
[1726210941813,14.8095,133.94,133.91,3.3601]
[1726210946109,3.3598,133.93,133.9,14.8103]
[1726210948214,14.8098,133.93,133.9,3.3603]
[1726210948410,3.36,133.92,133.89,4.7422]
[1726210949618,3.3602,133.91,133.88,3.3609]
[1726210950407,14.8101,133.92,133.89,3.3607]
[1726210951912,3.3601,133.92,133.89,3.3607]
[1726210953924,11.45,133.93,133.88,14.8109]
[1726210954415,3.3601,133.92,133.88,14.8109]
[1726210955420,14.8103,133.91,133.88,14.8109]
[1726210956822,3.3606,133.9,133.88,11.45]
[1726210958023,11.45,133.91,133.88,11.45]
[1726210958327,14.8103,133.91,133.88,14.811]
[1726210958529,11.45,133.9,133.85,1.4245]
[1726210958729,3.3611,133.88,133.85,4.7862]
[1726210959029,11.45,133.9,133.85,1.4245]
[1726210959422,3.3609,133.89,133.86,4.6827]
[1726210960422,3.3609,133.89,133.87,3.3612]
[1726210961039,14.8106,133.9,133.87,3.3612]
[1726210962027,14.8106,133.9,133.88,3.361]
[1726210962428,11.45,133.9,133.88,3.361]
[1726210962629,11.45,133.9,133.87,3.3611]
[1726210963130,14.8105,133.9,133.86,1.3213]
[1726210963630,14.8105,133.9,133.87,3.3612]
[1726210964127,14.8109,133.89,133.86,1.3213]
[1726210964523,14.8109,133.89,133.86,4.6826]
[1726210964724,11.45,133.89,133.86,1.3213]
[1726210965325,14.8106,133.9,133.86,12.7713]
[1726210965825,14.8106,133.9,133.87,3.3612]
[1726210966425,11.45,133.9,133.86,12.7713]
[1726210967227,14.8105,133.9,133.87,3.3611]
[1726210971222,3.3605,133.9,133.87,3.3611]
[1726210971427,14.8105,133.9,133.87,3.3611]
[1726210972532,14.8103,133.91,133.88,3.3608]
[1726210977238,3.3601,133.92,133.89,3.3606]
[1726210977637,14.8101,133.92,133.89,3.3606]
[1726210980231,14.8101,133.92,133.9,3.3605]
[1726210982041,11.45,133.93,133.91,3.3602]
[1726210983243,6.7151,134.02,133.91,11.45]
[1726210983446,11.45,133.96,133.91,11.45]
[1726210983836,3.3593,133.95,133.92,3.3598]
[1726210984441,14.8091,133.96,133.93,3.3597]
[1726210992053,3.3586,133.98,133.93,11.45]
[1726210992252,3.3586,133.98,133.95,11.45]
[1726210992482,11.45,133.98,133.93,11.45]
[1726210992641,3.3589,133.97,133.94,3.3594]
[1726210996056,3.3586,133.98,133.95,3.3592]
[1726210996257,3.3586,133.98,133.95,11.45]
[1726210996463,3.3586,133.98,133.91,1.4131]
[1726210996464,11.45,134.0,133.96,11.45]
[1726210997154,14.8081,134.0,133.97,3.3587]
[1726210997354,3.78034207,134.04,133.97,11.45]
[1726210997556,11.45,134.02,133.97,11.45]
[1726210998259,3.3579,134.01,133.98,3.3585]
[1726210998869,3.3579,134.01,133.97,14.8086]
[1726211000268,3.3579,134.01,133.98,3.3583]
[1726211000471,3.65972066,134.04,133.98,14.8083]
[1726211000673,11.45,134.02,133.98,14.8083]
[1726211001171,3.82401254,134.04,133.98,14.8083]
[1726211001468,11.45,134.02,133.98,14.8083]
[1726211001772,3.6619876,134.06,133.98,11.45]
[1726211001970,11.45,134.03,133.99,11.45]
[1726211002173,3.3574,134.03,133.99,14.8081]
[1726211002370,3.3574,134.03,133.99,11.45]
[1726211002568,3.3571,134.04,134.0,3.3578]
[1726211002771,11.45,134.05,134.0,11.45]
[1726211003074,11.45,134.04,133.99,11.45]
[1726211003276,14.8071,134.04,134.0,3.3579]
[1726211005074,3.3571,134.04,134.01,3.3577]
[1726211007472,3.3568,134.05,134.01,14.8077]
[1726211009368,3.3568,134.05,134.02,3.3575]
[1726211013883,3.3568,134.05,134.01,14.8077]
[1726211014073,3.357,134.04,134.01,14.8077]
[1726211015184,3.81045797,134.09,133.97,1.3169]
[1726211015185,14.8074,134.03,133.97,1.3169]
[1726211015368,14.8074,134.03,133.99,11.45]
[1726211015772,14.8074,134.03,133.99,14.8081]
[1726211016170,3.3575,134.02,133.99,14.8081]
[1726211016775,3.3575,134.02,133.99,3.3581]
[1726211016984,14.8075,134.02,133.99,3.3581]
[1726211017185,3.3578,134.01,133.98,14.8084]
[1726211017384,3.3578,134.01,133.98,3.3584]
[1726211018084,14.8076,134.02,133.99,3.3582]
[1726211020173,14.8076,134.02,133.98,3.3584]
[1726211021185,3.3578,134.01,133.98,3.3584]
[1726211022076,11.45,134.02,133.99,3.3582]
[1726211022077,14.8076,134.02,133.99,3.3582]
[1726211022476,3.3576,134.02,133.99,3.3582]
[1726211024978,3.3576,134.02,134.0,3.358]
[1726211027388,3.3574,134.03,134.0,14.808]
[1726211027586,3.3574,134.03,134.01,11.45]
[1726211028288,11.45,134.06,134.02,14.8075]
[1726211029894,3.357,134.05,134.02,14.8075]
[1726211030785,3.357,134.05,134.02,3.3575]
[1726211030988,3.357,134.05,134.01,14.8076]
[1726211031295,3.357,134.04,134.01,3.3576]
[1726211031591,3.357,134.04,134.01,14.8076]
[1726211032389,3.3569,134.05,134.01,14.8076]
[1726211034692,3.3566,134.06,134.03,3.3571]
[1726211034889,3.3566,134.06,134.03,14.8071]
[1726211036594,11.45,134.07,134.03,11.45]
[1726211037392,3.3566,134.06,134.03,14.8072]
[1726211038995,11.45,134.06,134.03,11.45]
[1726211039602,3.66985765,134.1,134.03,11.45]
[1726211039807,11.45,134.08,134.03,11.45]
[1726211040702,3.3564,134.07,134.04,3.357]
[1726211043597,3.3564,134.07,134.03,14.8071]
[1726211044001,14.8064,134.07,134.03,11.45]
[1726211044502,14.8064,134.07,134.04,3.357]
[1726211047100,3.3565,134.06,134.03,14.8071]
[1726211047401,11.45,134.04,133.97,1.3169]
[1726211047610,11.45,134.04,134.02,3.3575]
[1726211048807,3.3569,134.05,134.02,3.3575]
[1726211051106,3.357,134.04,134.02,3.3575]
[1726211051509,3.357,134.04,134.01,14.8077]
[1726211051712,3.357,134.04,133.97,1.3169]
[1726211051713,3.3573,134.03,133.97,1.3169]
[1726211051909,3.3573,134.03,133.99,11.45]
[1726211052113,14.8073,134.03,133.99,11.45]
[1726211052314,14.8073,134.03,134.0,3.3579]
[1726211052809,14.8073,134.03,133.97,1.3169]
[1726211052810,3.79104477,134.09,134.01,11.45]
[1726211053108,11.45,134.05,134.01,11.45]
[1726211053611,14.8069,134.05,134.02,3.3574]
[1726211058606,3.3572,134.04,134.01,3.3577]
[1726211059620,3.3573,134.03,134.0,3.3579]
[1726211060122,3.3573,134.03,133.97,6.43478653]
[1726211060123,3.3566,134.06,134.03,3.3571]
[1726211060716,11.45,134.07,134.04,3.3568]
[1726211061215,290.45984125,134.2,134.02,15.18404493]
[1726211061216,14.8062,134.08,134.03,11.45]
[1726211061414,6.7075,134.18,134.03,14.2848]
[1726211061621,11.45,134.09,134.03,14.2848]
[1726211061920,14.806,134.08,134.05,3.3566]
[1726211063422,14.806,134.08,134.04,3.3569]
[1726211066225,3.356,134.08,134.05,3.3567]
[1726211066526,14.806,134.08,134.05,3.3567]
[1726211074315,11.45,134.08,134.03,2.8348]
[1726211074516,11.45,134.07,134.03,2.8348]
[1726211075430,3.3566,134.06,134.03,6.1919]
[1726211075628,14.8066,134.06,134.03,6.1919]
[1726211076130,14.8068,134.05,134.03,2.8348]
[1726211076430,11.45,134.04,133.98,11.45]
[1726211076726,11.45,134.03,133.99,5.11768551]
[1726211077028,11.45,134.03,134.0,3.3579]
[1726211079829,11.45,134.03,134.01,3.3577]
[1726211081125,3.3572,134.04,134.01,3.3577]
[1726211081633,14.8068,134.05,134.02,3.3575]
[1726211082024,11.45,134.05,134.0,11.45]
[1726211082232,3.3571,134.04,134.01,3.3576]
[1726211083135,14.8069,134.05,134.02,3.3575]
[1726211084247,3.3569,134.05,134.02,3.3575]
[1726211084632,14.8066,134.06,134.02,3.3575]
[1726211084836,3.3566,134.06,134.03,3.3572]
[1726211085534,3.3566,134.06,134.03,14.8072]
[1726211086136,14.8064,134.07,134.03,14.8072]
[1726211087829,3.3565,134.06,134.03,14.8072]
[1726211088430,3.3565,134.06,134.03,3.3572]
[1726211088636,3.3565,134.06,134.03,14.8072]
[1726211090037,3.3564,134.07,134.04,3.3569]
[1726211090630,3.3564,134.07,134.04,14.8069]
[1726211101149,3.3565,134.06,134.03,3.3571]
[1726211101340,3.3565,134.06,134.03,14.8071]
[1726211102348,3.3565,134.06,134.04,11.45]
[1726211104848,3.3563,134.07,134.04,14.8069]
[1726211105042,3.3563,134.07,134.05,11.45]
[1726211106644,3.3561,134.08,134.06,11.45]
[1726211108151,3.3564,134.07,134.03,4.0778]
[1726211108350,11.45,134.09,134.04,11.45]
[1726211108750,3.3564,134.07,134.04,11.45]
[1726211108951,11.45,134.08,134.04,11.45]
[1726211110844,3.3564,134.07,134.04,11.45]
[1726211111656,11.45,134.05,133.94,7.478]
[1726211111853,6.709,134.15,134.0,11.45]
[1726211111854,11.45,134.04,134.0,11.45]
[1726211112354,3.3574,134.03,134.0,11.45]
[1726211112848,11.45,134.03,133.98,11.45]
[1726211113050,3.3575,134.02,133.98,3.3583]
[1726211113253,3.3575,134.02,133.98,14.8083]
[1726211113959,3.3577,134.01,133.97,6.1093]
[1726211114259,14.8077,134.01,133.98,11.45]
[1726211114652,3.358,134.0,133.97,2.7506]
[1726211114863,3.358,134.0,133.97,14.2006]
[1726211115063,14.808,134.0,133.97,14.2006]
[1726211115656,14.808,134.0,133.97,17.5593]
[1726211117059,14.808,134.0,133.97,2.7506]
[1726211117454,3.68181478,134.07,133.97,2.7506]
[1726211117455,14.8082,133.99,133.97,2.7506]
[1726211118361,14.8082,133.99,133.95,16.1623]
[1726211118861,14.8082,133.99,133.96,3.359]
[1726211119251,11.45,133.99,133.96,3.359]
[1726211119452,11.45,134.01,133.97,14.8086]
[1726211119664,3.68181478,134.07,133.97,11.45]
[1726211119665,11.45,134.02,133.97,11.45]
[1726211119963,14.8077,134.02,133.98,11.45]
[1726211120163,14.8077,134.02,133.98,14.8084]
[1726211120551,14.8077,134.02,133.98,11.45]
[1726211121457,14.8077,134.02,133.99,3.3582]
[1726211128263,14.8077,134.02,133.98,11.45]
[1726211128469,3.3577,134.01,133.98,14.8084]
[1726211131769,3.3577,134.01,133.98,3.3584]
[1726211133572,14.8079,134.01,133.97,6.0061]
[1726211133763,11.45,134.01,133.97,6.0061]
[1726211134677,3.3581,134.0,133.97,6.0061]
[1726211135171,3.3581,134.0,133.97,2.6476]
[1726211135471,11.45,133.98,133.97,2.6476]
[1726211139469,14.8085,133.98,133.97,2.6476]
[1726211139671,11.45,133.98,133.93,3.66278635]
[1726211139873,11.45,133.97,133.92,2.6322]
[1726211140070,11.45,133.97,133.92,17.72626779]
[1726211140465,11.45,133.97,133.93,11.45]
[1726211141075,14.8087,133.98,133.93,11.45]
[1726211141877,3.3588,133.97,133.94,3.3594]
[1726211148882,14.8088,133.97,133.94,3.3594]
[1726211163991,3.3584,133.99,133.94,11.45]
[1726211164196,3.68633308,134.04,133.97,11.45]
[1726211164386,11.45,134.03,133.98,11.45]
[1726211165994,3.3576,134.02,133.98,11.45]
[1726211166292,14.8076,134.02,133.98,11.45]
[1726211166794,14.8076,134.02,133.99,3.3582]
[1726211169091,11.45,134.03,134.0,3.358]
[1726211169296,16.00140105,134.11,134.0,11.45]
[1726211169492,11.45,134.05,134.0,11.45]
[1726211169691,11.45,134.05,134.02,3.3574]
[1726211170161,11.45,134.06,134.01,14.2665]
[1726211170293,14.8065,134.06,134.03,3.3572]
[1726211170797,11.45,134.05,134.02,3.3574]
[1726211171091,14.8068,134.05,134.02,3.3574]
[1726211171893,11.45,134.03,134.01,6.1742]
[1726211172087,11.45,134.03,134.0,1.3258]
[1726211172486,11.45,134.03,134.01,3.3577]
[1726211173202,3.357,134.04,134.01,3.3577]
[1726211173387,3.3568,134.05,134.02,3.3575]
[1726211173588,11.45,134.06,134.02,11.45]
[1726211174493,11.45,134.06,134.03,3.3571]
[1726211174699,11.45,134.07,134.02,11.45]
[1726211175396,14.8064,134.07,134.04,3.357]
[1726211176202,3.3564,134.07,134.04,3.357]
[1726211176404,14.8064,134.07,134.04,3.357]
[1726211179297,3.3559,134.09,134.05,3.3567]